bitfinex/quotes_BTCUSD_20241018
["timestamp","ask_amount","ask_price","bid_price","bid_amount"]
[1729260769824,0.024675,68198.0,68197.0,0.146634]
[1729260770057,0.15062115,68198.0,68197.0,0.146634]
[1729260770297,0.001662,68198.0,68197.0,0.146634]
[1729260770528,0.001662,68198.0,68197.0,0.151634]
[1729260770761,0.001662,68198.0,68197.0,0.251634]
[1729260771040,0.001662,68198.0,68197.0,0.33788096]
[1729260771266,0.001662,68198.0,68197.0,0.34008036]
[1729260771536,0.001662,68198.0,68197.0,0.2538334]
[1729260771775,0.001662,68198.0,68197.0,0.0021994]
[1729260771776,0.29725215,68198.0,68197.0,0.0021994]
[1729260772008,0.15062115,68198.0,68197.0,0.0021994]
[1729260772478,0.15062115,68198.0,68197.0,0.0131994]
[1729260772998,0.15062115,68198.0,68197.0,0.0081994]
[1729260773505,0.15062115,68198.0,68197.0,0.1488334]
[1729260773741,0.15062115,68198.0,68197.0,0.19195905]
[1729260773971,0.15062115,68198.0,68197.0,0.19495905]
[1729260774201,0.15062115,68198.0,68197.0,0.1488334]
[1729260774427,0.15062115,68198.0,68197.0,0.19195905]
[1729260774655,0.15062115,68198.0,68197.0,0.1548334]
[1729260774903,0.15062115,68198.0,68197.0,0.1578334]
[1729260775615,0.15062115,68198.0,68197.0,0.1548334]
[1729260775853,0.15062115,68198.0,68197.0,0.1528334]
[1729260776095,0.15062115,68198.0,68197.0,0.1588334]
[1729260776342,0.15062115,68198.0,68197.0,0.22351948]
[1729260777335,0.15062115,68198.0,68197.0,0.1588334]
[1729260777841,0.001662,68198.0,68197.0,0.24508036]
[1729260778339,0.001662,68198.0,68197.0,0.1588334]
[1729260778849,0.001662,68198.0,68197.0,0.1638334]
[1729260779093,0.001662,68198.0,68197.0,0.3716421]
[1729260779344,0.001662,68198.0,68197.0,0.2638334]
[1729260779811,0.001662,68198.0,68197.0,0.30898397]
[1729260780041,0.001662,68198.0,68197.0,0.29898397]
[1729260780291,0.001662,68198.0,68197.0,0.42835442]
[1729260780533,0.001662,68198.0,68197.0,0.43445294]
[1729260780767,0.001662,68198.0,68197.0,0.19398397]
[1729260781003,0.15062115,68198.0,68197.0,0.05234997]
[1729260781234,0.15062115,68198.0,68197.0,0.19898397]
[1729260781470,0.40785249,68198.0,68197.0,0.06698352]
[1729260782016,0.40785249,68198.0,68197.0,0.0021994]
[1729260782017,0.33025215,68198.0,68197.0,0.0021994]
[1729260782236,0.33025215,68198.0,68196.0,0.03]
[1729260782237,0.174659,68185.0,68182.0,0.64]
[1729260782473,0.32362315,68183.0,68182.0,0.64]
[1729260782924,0.32362315,68183.0,68175.0,0.04319161]
[1729260782925,0.151679,68176.0,68175.0,0.04319161]
[1729260783149,0.151679,68176.0,68173.0,0.146685]
[1729260783150,0.14895915,68176.0,68173.0,0.146685]
[1729260783412,0.1821,68180.0,68174.0,0.04319161]
[1729260783413,0.14895915,68175.0,68174.0,0.04319161]
[1729260783676,0.14895915,68175.0,68173.0,0.06478412]
[1729260783941,0.14895915,68175.0,68169.0,0.10796913]
[1729260783942,0.012,68172.0,68169.0,0.04330262]
[1729260784218,0.012,68172.0,68157.0,0.0022008]
[1729260784219,0.179713,68160.0,68147.0,0.06478412]
[1729260784490,0.1,68168.0,68141.0,0.06810518]
[1729260784491,0.023,68145.0,68141.0,0.06810518]
[1729260784739,0.39661523,68148.0,68141.0,0.0030323]
[1729260784994,0.146745,68145.0,68141.0,0.0030323]
[1729260785239,0.14895915,68145.0,68141.0,0.0030323]
[1729260786211,0.14895915,68145.0,68144.0,0.21649318]
[1729260786445,0.14895915,68145.0,68144.0,0.1514203]
[1729260787183,0.14895915,68145.0,68144.0,0.0046723]
[1729260787636,0.09895915,68145.0,68144.0,0.0106723]
[1729260787871,0.09895915,68145.0,68144.0,0.0115033]
[1729260788798,0.09895915,68145.0,68144.0,0.1582513]
[1729260789021,0.09895915,68145.0,68144.0,0.1602513]
[1729260789502,0.09895915,68145.0,68144.0,0.1542513]
[1729260789741,1.98285296,68160.0,68145.0,0.005]
[1729260789958,1.98285296,68160.0,68147.0,0.293483]
[1729260789959,0.219271,68150.0,68147.0,0.293483]
[1729260790183,0.14895915,68159.0,68145.0,0.005]
[1729260790184,0.14895915,68159.0,68156.0,0.146721]
[1729260791070,0.14895915,68159.0,68148.0,0.06994035]
[1729260791285,0.146721,68157.0,68148.0,0.21667935]
[1729260791502,0.14895915,68156.0,68148.0,0.005]
[1729260791953,0.14895915,68156.0,68149.0,0.146736]
[1729260792226,0.14895915,68156.0,68148.0,0.005]
[1729260792467,0.14895915,68156.0,68146.0,0.005]
[1729260792693,0.14895915,68156.0,68148.0,0.005]
[1729260792925,0.219271,68153.0,68144.0,0.07044365]
[1729260793160,0.146739,68149.0,68148.0,0.004]
[1729260793383,0.14895915,68149.0,68148.0,0.004]
[1729260793625,0.14895915,68149.0,68148.0,0.005]
[1729260793626,0.29569615,68149.0,68148.0,0.005]
[1729260793842,0.146745,68145.0,68144.0,0.0055033]
[1729260794056,0.29570415,68145.0,68144.0,0.0055033]
[1729260794272,0.29570415,68145.0,68144.0,0.0115033]
[1729260794712,0.29570415,68145.0,68144.0,0.0055033]
[1729260794713,0.71531938,68145.0,68144.0,0.0055033]
[1729260795160,0.72231938,68145.0,68144.0,0.0055033]
[1729260795379,0.51870415,68145.0,68144.0,0.0055033]
[1729260797203,0.52070415,68145.0,68144.0,0.0065033]
[1729260797471,0.62070415,68145.0,68144.0,0.0065033]
[1729260797692,0.62070415,68145.0,68144.0,0.0075033]
[1729260797910,0.62070415,68145.0,68144.0,0.0065033]
[1729260798139,0.62070415,68145.0,68141.0,0.000831]
[1729260798140,0.281752,68142.0,68141.0,0.000831]
[1729260798369,0.82232638,68142.0,68141.0,0.000831]
[1729260798588,0.82032638,68142.0,68141.0,0.000831]
[1729260798854,0.82232638,68142.0,68141.0,0.000831]
[1729260799290,0.82032638,68142.0,68141.0,0.000831]
[1729260799721,0.82032638,68142.0,68141.0,0.001831]
[1729260800394,0.82032638,68142.0,68109.0,0.00220236]
[1729260800395,0.023,68116.0,68112.0,0.219271]
[1729260800613,0.29577315,68113.0,68112.0,0.219271]
[1729260800831,0.14895915,68113.0,68101.0,0.14684]
[1729260801062,0.14895915,68113.0,68101.0,0.293681]
[1729260801308,0.14683,68106.0,68100.0,0.0012479]
[1729260801527,0.14895915,68105.0,68100.0,0.1480889]
[1729260801739,0.14895915,68105.0,68104.0,0.146834]
[1729260801955,0.14895915,68105.0,68101.0,0.29868]
[1729260802167,0.14895915,68105.0,68103.0,0.146836]
[1729260802403,0.14895915,68105.0,68100.0,0.1480879]
[1729260802624,0.14895915,68105.0,68101.0,0.004]
[1729260802853,0.14895915,68105.0,68104.0,0.146834]
[1729260803079,0.219271,68111.0,68110.0,0.146821]
[1729260803301,0.36823015,68111.0,68110.0,0.146821]
[1729260803522,0.36823015,68111.0,68107.0,0.293652]
[1729260803523,0.36823015,68111.0,68108.0,0.146824]
[1729260803742,0.219271,68118.0,68109.0,0.146823]
[1729260803743,0.14895915,68110.0,68109.0,0.146823]
[1729260803979,0.14895915,68110.0,68106.0,0.298657]
[1729260804194,0.14895915,68110.0,68106.0,0.151829]
[1729260804413,0.14895915,68110.0,68100.0,0.0012479]
[1729260804414,0.14895915,68110.0,68101.0,0.293681]
[1729260804635,0.14895915,68110.0,68102.0,0.293677]
[1729260804854,0.14895915,68110.0,68103.0,0.293672]
[1729260805095,0.219271,68109.0,68102.0,0.005]
[1729260805371,0.14895915,68108.0,68106.0,0.003]
[1729260805606,0.14895915,68108.0,68104.0,0.146833]
[1729260805828,0.14895915,68108.0,68100.0,0.0012479]
[1729260806055,0.293655,68107.0,68102.0,0.006]
[1729260806288,0.146839,68102.0,68100.0,0.0012479]
[1729260806513,0.14895915,68101.0,68100.0,0.0012479]
[1729260807386,0.14895915,68101.0,68100.0,0.1480899]
[1729260807621,0.14895915,68101.0,68100.0,0.0012479]
[1729260807879,0.31879915,68101.0,68100.0,0.0012479]
[1729260808125,0.33869507,68101.0,68100.0,0.0012479]
[1729260808344,0.15395915,68101.0,68100.0,0.0042479]
[1729260808608,0.14895915,68101.0,68100.0,0.0042479]
[1729260808850,0.299271,68118.0,68110.0,0.146821]
[1729260808851,0.219271,68111.0,68110.0,0.146821]
[1729260809076,0.36823015,68111.0,68110.0,0.146821]
[1729260809295,0.36823015,68111.0,68101.0,0.005]
[1729260809516,0.14895915,68110.0,68109.0,0.146823]
[1729260810454,0.14895915,68110.0,68108.0,0.146824]
[1729260810689,0.14895915,68110.0,68106.0,0.146828]
[1729260810918,0.146824,68109.0,68102.0,0.146836]
[1729260811136,0.303613,68117.0,68102.0,0.293675]
[1729260811137,0.14895915,68108.0,68102.0,0.293675]
[1729260811350,0.14895915,68108.0,68101.0,0.005]
[1729260811568,0.219271,68107.0,68101.0,0.005]
[1729260811821,0.219271,68107.0,68105.0,0.14683]
[1729260811822,0.14895915,68106.0,68105.0,0.14683]
[1729260813304,0.14895915,68106.0,68105.0,0.14903226]
[1729260814147,0.219271,68116.0,68111.0,0.005]
[1729260814361,0.14895915,68115.0,68114.0,0.151812]
[1729260814581,0.219271,68116.0,68115.0,0.14681]
[1729260814796,0.36823015,68116.0,68115.0,0.14681]
[1729260815011,0.14895915,68116.0,68115.0,0.15181]
[1729260815234,0.219271,68132.0,68115.0,0.005]
[1729260815453,0.14895915,68124.0,68116.0,0.005]
[1729260815701,0.14895915,68124.0,68117.0,0.005]
[1729260815932,0.14895915,68124.0,68112.0,0.0815]
[1729260815933,0.14895915,68124.0,68119.0,0.005]
[1729260817957,0.14895915,68124.0,68121.0,0.00220195]
[1729260818177,0.14895915,68124.0,68123.0,0.146793]
[1729260819734,0.14895915,68124.0,68121.0,0.00520195]
[1729260819959,0.14895915,68124.0,68123.0,0.149793]
[1729260820169,0.14895915,68124.0,68123.0,0.146793]
[1729260820619,0.14895915,68124.0,68121.0,0.00220195]
[1729260821341,0.219271,68123.0,68121.0,0.00220195]
[1729260821557,0.14895915,68122.0,68121.0,0.00220195]
[1729260821779,0.14895915,68122.0,68121.0,0.14899895]
[1729260822216,0.14895915,68122.0,68121.0,0.00220195]
[1729260822665,0.14895915,68122.0,68121.0,0.01020195]
[1729260822893,0.29575415,68122.0,68121.0,0.00520195]
[1729260823116,0.29575415,68122.0,68121.0,0.00220195]
[1729260823341,0.29575415,68122.0,68121.0,0.00720195]
[1729260823561,0.29575415,68122.0,68121.0,0.00520195]
[1729260824493,0.29575415,68122.0,68121.0,0.003]
[1729260824754,0.32375415,68122.0,68121.0,0.003]
[1729260824996,0.293625,68114.0,68110.0,0.04318305]
[1729260825238,0.14895915,68113.0,68109.0,0.10795764]
[1729260825464,0.39819883,68112.0,68111.0,0.06505157]
[1729260825691,0.179823,68109.0,68108.0,0.04337985]
[1729260825947,0.01,68101.0,68100.0,0.04462775]
[1729260826172,0.58018098,68101.0,68100.0,0.0012479]
[1729260826640,0.47491805,68101.0,68100.0,0.0012479]
[1729260827296,0.47491805,68101.0,68100.0,0.0022479]
[1729260827517,0.54807015,68101.0,68100.0,0.0022479]
[1729260827741,0.42879915,68101.0,68100.0,0.0022479]
[1729260828017,0.179864,68090.0,68089.0,0.04339471]
[1729260828221,0.179866,68089.0,68088.0,0.04339471]
[1729260828500,0.179866,68089.0,68077.0,0.13018414]
[1729260828501,0.01,68081.0,68080.0,0.06509207]
[1729260828732,0.01,68081.0,68062.0,0.19222502]
[1729260828733,0.01,68071.0,68070.0,0.06520865]
[1729260828963,0.01,68071.0,68050.0,0.13018414]
[1729260828964,0.174948,68051.0,68050.0,0.13018414]
[1729260829181,0.174948,68051.0,68048.0,0.13018414]
[1729260829182,0.174952,68049.0,68048.0,0.13018414]
[1729260829405,0.174952,68049.0,68039.0,0.13027414]
[1729260829406,0.14697,68041.0,68039.0,0.13027414]
[1729260829630,0.29593115,68040.0,68039.0,9e-05]
[1729260829841,0.32393115,68040.0,68039.0,9e-05]
[1729260830062,0.14895915,68040.0,68039.0,9e-05]
[1729260830493,0.29593115,68040.0,68039.0,9e-05]
[1729260830710,0.17195915,68040.0,68039.0,9e-05]
[1729260830947,0.31893115,68040.0,68039.0,9e-05]
[1729260831169,0.32393115,68040.0,68039.0,9e-05]
[1729260831389,0.31893115,68040.0,68039.0,9e-05]
[1729260832069,0.17195915,68040.0,68039.0,9e-05]
[1729260832342,0.32393115,68040.0,68039.0,9e-05]
[1729260832563,0.14895915,68040.0,68039.0,9e-05]
[1729260833016,0.14895915,68040.0,68039.0,0.149064]
[1729260833017,0.15495915,68040.0,68039.0,0.149064]
[1729260833454,0.15495915,68040.0,68039.0,0.148064]
[1729260833675,0.006,68040.0,68039.0,0.153064]
[1729260833883,0.219271,68053.0,68048.0,0.146953]
[1729260834104,0.219271,68053.0,68040.0,0.293944]
[1729260834105,0.14895915,68049.0,68040.0,0.005]
[1729260834346,0.005,68058.0,68039.0,0.152064]
[1729260834347,0.001,68040.0,68039.0,0.152064]
[1729260834800,0.001,68040.0,68039.0,0.252064]
[1729260835927,0.219271,68053.0,68052.0,0.151946]
[1729260836213,0.219271,68053.0,68052.0,0.64612356]
[1729260836441,0.219271,68089.0,68066.0,0.151916]
[1729260836442,0.29375,68085.0,68066.0,0.151916]
[1729260836935,0.146873,68086.0,68073.0,0.146901]
[1729260837162,0.518004,68089.0,68073.0,0.146901]
[1729260837163,0.29375,68085.0,68073.0,0.146901]
[1729260837377,0.513004,68089.0,68073.0,0.146901]
[1729260837378,0.518004,68089.0,68073.0,0.146901]
[1729260837601,0.293749,68086.0,68073.0,0.146901]
[1729260837826,0.14895915,68074.0,68073.0,0.146901]
[1729260838288,0.219271,68089.0,68072.0,0.005]
[1729260838512,0.219271,68089.0,68066.0,0.106]
[1729260838513,0.14895915,68080.0,68079.0,0.146888]
[1729260838982,0.219271,68089.0,68084.0,0.005]
[1729260839209,0.219271,68089.0,68085.0,0.293749]
[1729260839210,0.14895915,68088.0,68085.0,0.293749]
[1729260839441,0.14895915,68088.0,68077.0,0.04324158]
[1729260839684,0.219271,68089.0,68074.0,0.005]
[1729260839685,0.146884,68081.0,68074.0,0.005]
[1729260839948,0.14895915,68080.0,68076.0,0.146894]
[1729260840174,0.14895915,68080.0,68074.0,0.005]
[1729260840400,0.219271,68079.0,68072.0,0.00220355]
[1729260840625,0.14895915,68078.0,68072.0,0.00220355]
[1729260840840,0.29584915,68078.0,68072.0,0.00220355]
[1729260841063,0.29585515,68075.0,68074.0,0.006]
[1729260841295,0.69003271,68075.0,68074.0,0.006]
[1729260841735,0.31885515,68075.0,68074.0,0.006]
[1729260841963,0.32885515,68075.0,68074.0,0.006]
[1729260842402,0.32885515,68075.0,68052.0,0.000829]
[1729260842403,0.005,68065.0,68052.0,0.000829]
[1729260842623,0.146937,68057.0,68052.0,0.000829]
[1729260842836,0.14895915,68056.0,68052.0,0.000829]
[1729260843510,0.14895915,68056.0,68053.0,0.00220417]
[1729260843511,0.366213,68054.0,68053.0,0.00220417]
[1729260843785,0.29590115,68054.0,68053.0,0.00220417]
[1729260844855,0.31894115,68054.0,68053.0,0.00220417]
[1729260845121,0.40349577,68054.0,68053.0,0.00220417]
[1729260845331,0.29594115,68054.0,68053.0,0.00220417]
[1729260845982,0.28894115,68054.0,68053.0,0.001]
[1729260846211,0.28894115,68054.0,68052.0,0.000829]
[1729260846212,0.179944,68053.0,68052.0,0.000829]
[1729260846424,0.32890315,68053.0,68052.0,0.000829]
[1729260846633,0.35386068,68053.0,68052.0,0.000829]
[1729260846848,0.32890315,68053.0,68052.0,0.000829]
[1729260847528,0.32890315,68053.0,68052.0,0.001829]
[1729260847737,0.33790315,68053.0,68052.0,0.002829]
[1729260847951,0.33790315,68053.0,68052.0,0.001829]
[1729260848404,0.33290315,68053.0,68052.0,0.002829]
[1729260848617,0.33790315,68053.0,68052.0,0.002829]
[1729260849048,0.32890315,68053.0,68052.0,0.001829]
[1729260849260,0.32890315,68053.0,68052.0,0.002829]
[1729260849261,0.33790315,68053.0,68052.0,0.002829]
[1729260849478,0.33290315,68053.0,68052.0,0.002829]
[1729260849719,0.14895915,68053.0,68052.0,0.000829]
[1729260849958,0.15795915,68053.0,68052.0,0.001829]
[1729260850192,0.15795915,68053.0,68052.0,0.002829]
[1729260850632,0.38671167,68053.0,68052.0,0.002829]
[1729260850879,0.37771167,68053.0,68052.0,0.001829]
[1729260851099,0.31890315,68053.0,68052.0,0.001829]
[1729260851400,0.31890315,68053.0,68052.0,0.000829]
[1729260851542,0.32390315,68053.0,68052.0,0.000829]
[1729260851766,0.32894315,68053.0,68052.0,0.000829]
[1729260851979,0.31894315,68053.0,68052.0,0.000829]
[1729260852197,0.29794315,68053.0,68052.0,0.000829]
[1729260852437,0.15099915,68053.0,68052.0,0.000829]
[1729260852662,0.14899915,68053.0,68052.0,0.000829]
[1729260852875,0.00904,68053.0,68052.0,0.153775]
[1729260853873,0.01004,68053.0,68052.0,0.252775]
[1729260854105,4e-05,68053.0,68052.0,0.25497907]
[1729260854354,4e-05,68053.0,68052.0,0.25797907]
[1729260854600,4e-05,68053.0,68052.0,0.26297907]
[1729260854886,4e-05,68053.0,68052.0,0.25997907]
[1729260855206,4e-05,68053.0,68052.0,0.31320791]
[1729260855374,0.219271,68067.0,68066.0,0.005]
[1729260855597,0.219271,68067.0,68066.0,0.64609356]
[1729260856090,0.219271,68089.0,68074.0,0.005]
[1729260856354,0.219271,68089.0,68074.0,0.151898]
[1729260856821,0.14899915,68075.0,68074.0,0.151898]
[1729260858039,0.14899915,68075.0,68071.0,0.393808]
[1729260858040,0.14899915,68075.0,68072.0,0.00220353]
[1729260858255,4e-05,68075.0,68074.0,0.151898]
[1729260858481,4e-05,68075.0,68074.0,0.154898]
[1729260859707,0.00104,68075.0,68074.0,0.160898]
[1729260859972,8e-05,68075.0,68074.0,0.149898]
[1729260860226,0.00108,68075.0,68074.0,0.006]
[1729260860448,0.147976,68075.0,68074.0,0.006]
[1729260860672,0.29693515,68075.0,68074.0,0.006]
[1729260861114,0.146901,68073.0,68072.0,0.00220353]
[1729260861338,0.29586015,68073.0,68072.0,0.00220353]
[1729260861806,0.14895915,68073.0,68072.0,0.00220353]
[1729260862048,0.29586015,68073.0,68072.0,0.00220353]
[1729260862283,0.14895915,68073.0,68072.0,0.00220353]
[1729260862764,0.14895915,68073.0,68062.0,0.39417756]
[1729260862765,0.005,68071.0,68062.0,0.39417756]
[1729260863013,0.005,68071.0,68049.0,0.219271]
[1729260863014,0.005,68073.0,68068.0,0.39417756]
[1729260863235,0.219271,68071.0,68068.0,0.39417756]
[1729260863503,0.005,68073.0,68068.0,0.39417756]
[1729260863744,0.224271,68073.0,68072.0,0.146903]
[1729260864212,0.225271,68073.0,68072.0,0.146903]
[1729260864431,0.006,68073.0,68072.0,0.146903]
[1729260864861,0.001,68073.0,68072.0,0.146903]
[1729260865350,0.001,68073.0,68072.0,0.149903]
[1729260866002,8e-05,68075.0,68072.0,0.149903]
[1729260866003,8e-05,68075.0,68072.0,0.003]
[1729260866251,0.14895915,68074.0,68072.0,0.003]
[1729260866469,0.006,68073.0,68072.0,0.006]
[1729260866735,0.15395915,68073.0,68069.0,0.146909]
[1729260866947,0.14895915,68072.0,68070.0,0.146906]
[1729260867170,0.14895915,68072.0,68071.0,0.146905]
[1729260867386,0.14895915,68072.0,68068.0,0.293823]
[1729260867602,0.14895915,68072.0,68070.0,0.146907]
[1729260867830,0.14895915,68072.0,68068.0,0.293823]
[1729260868038,0.14895915,68072.0,68070.0,0.440722]
[1729260868258,0.14895915,68072.0,68069.0,0.003]
[1729260868497,0.006,68073.0,68072.0,0.146903]
[1729260868498,0.001,68073.0,68072.0,0.146903]
[1729260868714,8e-05,68075.0,68074.0,0.146898]
[1729260868940,0.14903915,68075.0,68074.0,0.146898]
[1729260869876,0.14903915,68075.0,68071.0,0.29381]
[1729260870116,0.14895915,68074.0,68073.0,0.146901]
[1729260870335,0.14895915,68074.0,68073.0,0.440703]
[1729260871774,0.00012,68075.0,68074.0,0.146898]
[1729260872304,0.00012,68075.0,68074.0,0.23375858]
[1729260872562,0.00012,68075.0,68074.0,0.146898]
[1729260873019,0.00012,68075.0,68074.0,0.146858]
[1729260873252,0.00112,68075.0,68074.0,0.152858]
[1729260873470,0.00112,68075.0,68074.0,0.155858]
[1729260873723,0.00012,68075.0,68074.0,0.149858]
[1729260873943,0.00012,68075.0,68074.0,0.146858]
[1729260874445,0.00012,68075.0,68074.0,0.149858]
[1729260874943,0.00112,68075.0,68074.0,0.152858]
[1729260875430,0.00112,68075.0,68074.0,0.146858]
[1729260875431,0.00012,68075.0,68074.0,0.146858]
[1729260875677,0.00012,68075.0,68074.0,0.32143407]
[1729260875678,0.00112,68075.0,68074.0,0.32143407]
[1729260875906,0.00012,68075.0,68074.0,0.31544065]
[1729260876131,0.00012,68075.0,68074.0,0.206858]
[1729260876380,0.00112,68075.0,68074.0,0.212858]
[1729260876626,0.00012,68075.0,68074.0,0.206858]
[1729260876873,0.00012,68075.0,68074.0,0.209858]
[1729260877357,0.001778,68075.0,68074.0,0.209858]
[1729260877595,0.002778,68075.0,68074.0,0.212858]
[1729260877820,0.002778,68075.0,68074.0,0.30271854]
[1729260878046,0.15173715,68075.0,68074.0,0.215858]
[1729260878292,0.31363315,68075.0,68074.0,0.069]
[1729260878565,0.42909501,68075.0,68074.0,0.069]
[1729260878786,0.55209501,68075.0,68074.0,0.009]
[1729260879242,0.55109501,68075.0,68074.0,0.003]
[1729260879457,0.76209501,68075.0,68074.0,0.003]
[1729260879711,0.76209501,68075.0,68067.0,0.000829]
[1729260879712,0.189911,68068.0,68067.0,0.000829]
[1729260879932,0.68563364,68068.0,68067.0,0.000829]
[1729260880194,0.43387015,68068.0,68067.0,0.000829]
[1729260880693,0.68563364,68068.0,68067.0,0.000829]
[1729260881140,0.69063364,68068.0,68067.0,0.001829]
[1729260881362,0.92649279,68068.0,68067.0,0.001829]
[1729260881601,0.77753364,68068.0,68067.0,0.000829]
[1729260882068,0.78753364,68068.0,68067.0,0.001829]
[1729260882541,0.77753364,68068.0,68067.0,0.000829]
[1729260883000,0.93149279,68068.0,68067.0,0.000829]
[1729260883266,0.79753364,68068.0,68067.0,0.002829]
[1729260883501,0.78753364,68068.0,68067.0,0.001829]
[1729260883717,0.79253364,68068.0,68067.0,0.001829]
[1729260883945,0.79753364,68068.0,68067.0,0.002829]
[1729260884398,0.79753364,68068.0,68067.0,0.001829]
[1729260884399,0.78753364,68068.0,68067.0,0.001829]
[1729260884624,0.79253364,68068.0,68067.0,0.001829]
[1729260884841,0.50777015,68068.0,68067.0,0.002829]
[1729260885083,0.49777015,68068.0,68067.0,0.001829]
[1729260885310,0.99180464,68068.0,68067.0,0.001829]
[1729260885535,0.77253364,68068.0,68067.0,0.001829]
[1729260885815,0.78253364,68068.0,68067.0,0.002829]
[1729260886038,0.53077015,68068.0,68067.0,0.001829]
[1729260886253,0.53077015,68068.0,68067.0,0.000829]
[1729260886254,0.49277015,68068.0,68067.0,0.000829]
[1729260886475,0.32087015,68068.0,68067.0,0.001829]
[1729260886712,0.17595915,68068.0,68067.0,0.002829]
[1729260887381,0.32291015,68068.0,68067.0,0.002829]
[1729260887852,0.32291015,68068.0,68054.0,0.63259632]
[1729260887853,0.169944,68053.0,68052.0,0.000829]
[1729260888081,0.56266664,68053.0,68052.0,0.000829]
[1729260889259,0.80493764,68053.0,68052.0,0.000829]
[1729260889797,0.58566664,68053.0,68052.0,0.003829]
[1729260890023,0.59566664,68053.0,68052.0,0.004829]
[1729260890466,0.59566664,68053.0,68052.0,0.001829]
[1729260890921,0.59766664,68053.0,68052.0,0.002829]
[1729260891148,0.59770664,68053.0,68052.0,0.002829]
[1729260891611,0.62094755,68053.0,68052.0,0.002829]
[1729260892298,0.32294315,68053.0,68052.0,0.002829]
[1729260892519,0.16099915,68053.0,68052.0,0.40153849]
[1729260892737,0.01204,68053.0,68052.0,0.40153849]
[1729260892959,0.01204,68053.0,68052.0,0.46675086]
[1729260893195,0.01204,68053.0,68052.0,0.40153849]
[1729260893452,0.01004,68053.0,68052.0,0.40053849]
[1729260893677,4e-05,68053.0,68052.0,0.48648832]
[1729260893885,0.00204,68053.0,68052.0,0.48648832]
[1729260894107,0.00304,68053.0,68052.0,0.4914924]
[1729260894320,0.00304,68053.0,68052.0,0.40453849]
[1729260894545,0.00104,68053.0,68052.0,0.40453849]
[1729260894758,0.00104,68053.0,68052.0,0.40753849]
[1729260894981,0.00104,68053.0,68052.0,0.2644847]
[1729260895199,0.00104,68053.0,68052.0,0.51624819]
[1729260896313,0.00104,68053.0,68052.0,0.51628105]
[1729260896523,0.00104,68053.0,68052.0,0.40753849]
[1729260896973,0.00104,68053.0,68052.0,0.51629264]
[1729260897461,0.00104,68053.0,68052.0,0.40753849]
[1729260900052,0.00104,68053.0,68052.0,0.55784047]
[1729260900294,0.00104,68053.0,68052.0,0.89749962]
[1729260900555,0.001658,68074.0,68067.0,0.146914]
[1729260901473,4e-05,68068.0,68067.0,0.146914]
[1729260901688,4e-05,68068.0,68067.0,0.39867749]
[1729260902769,4e-05,68068.0,68067.0,0.39950649]
[1729260902991,0.002698,68068.0,68067.0,0.154743]
[1729260903213,0.002698,68068.0,68067.0,0.40950649]
[1729260904111,0.31356815,68068.0,68067.0,0.010829]
[1729260904362,0.39310131,68068.0,68067.0,0.010829]
[1729260904590,0.61237231,68068.0,68067.0,0.010829]
[1729260904808,0.39310131,68068.0,68067.0,0.010829]
[1729260905073,0.31356815,68068.0,68067.0,0.010829]
[1729260905501,0.33656815,68068.0,68067.0,0.010829]
[1729260905934,0.33556815,68068.0,68067.0,0.003829]
[1729260906182,0.34656815,68068.0,68067.0,0.004829]
[1729260906806,0.34656815,68068.0,68067.0,0.001829]
[1729260907231,0.34656815,68068.0,68067.0,0.002829]
[1729260907451,0.32356815,68068.0,68067.0,0.002829]
[1729260907917,0.34656815,68068.0,68067.0,0.002829]
[1729260909302,0.36156815,68068.0,68067.0,0.002829]
[1729260909546,0.46356815,68068.0,68067.0,0.002829]
[1729260909756,0.46156815,68068.0,68067.0,0.002829]
[1729260910178,0.53178077,68068.0,68067.0,0.002829]
[1729260910401,0.46156815,68068.0,68067.0,0.002829]
[1729260910856,0.64426815,68068.0,68067.0,0.002829]
[1729260911069,0.64626815,68068.0,68067.0,0.002829]
[1729260912690,0.89803164,68068.0,68067.0,0.002829]
[1729260912913,0.43670749,68053.0,68052.0,0.000829]
[1729260913128,0.33390315,68053.0,68052.0,0.000829]
[1729260913351,0.58566664,68053.0,68052.0,0.000829]
[1729260913796,0.33390315,68053.0,68052.0,0.000829]
[1729260914019,0.31090315,68053.0,68052.0,0.000829]
[1729260914235,0.16895915,68053.0,68052.0,0.000829]
[1729260914477,0.17295915,68053.0,68052.0,0.000829]
[1729260914683,0.31990315,68053.0,68052.0,0.000829]
[1729260915172,0.31490315,68053.0,68052.0,0.000829]
[1729260915413,0.31590315,68053.0,68052.0,0.000829]
[1729260915849,0.33890315,68053.0,68052.0,0.000829]
[1729260916088,0.41090315,68053.0,68052.0,0.000829]
[1729260916980,0.66166664,68053.0,68052.0,0.000829]
[1729260917193,0.66366664,68053.0,68052.0,0.000829]
[1729260917438,0.66766664,68053.0,68052.0,0.000829]
[1729260920493,0.66766664,68053.0,68039.0,9e-05]
[1729260920494,0.284972,68040.0,68039.0,9e-05]
[1729260920731,0.43893115,68040.0,68039.0,9e-05]
[1729260921223,0.45093115,68040.0,68039.0,9e-05]
[1729260921447,0.185013,68021.0,68020.0,7.501e-05]
[1729260921707,0.49163229,68021.0,68020.0,7.501e-05]
[1729260921959,0.44897215,68021.0,68020.0,7.501e-05]
[1729260922213,0.44897215,68021.0,67996.0,0.38117482]
[1729260922214,0.005,68000.0,67996.0,0.38117482]
[1729260922455,0.005,68000.0,67996.0,0.08712541]
[1729260922456,0.14895915,67999.0,67996.0,0.08712541]
[1729260922976,0.005,68001.0,67996.0,0.38125841]
[1729260923245,0.219271,68017.0,67984.0,0.000829]
[1729260923246,0.219271,68017.0,68004.0,0.005]
[1729260923475,0.219271,68017.0,68005.0,0.247048]
[1729260923476,0.219271,68006.0,68005.0,0.247048]
[1729260923723,0.14895915,68016.0,68015.0,0.147026]
[1729260923971,0.14895915,68016.0,68012.0,0.294061]
[1729260923972,0.01,68013.0,68012.0,0.08707482]
[1729260924304,0.01,68013.0,68007.0,0.08707482]
[1729260924305,0.01,68011.0,68007.0,0.08707482]
[1729260924526,0.0804,68012.0,67998.0,0.00503474]
[1729260924527,0.015,68001.0,67998.0,0.00503474]
[1729260924736,0.14895915,68000.0,67999.0,0.14706]